fUSD/lending_fUSD_20251118
["ID","MTS","AMOUNT","RATE_DAILY","PERIOD"]
[394305499,1763437839840,-1000.0,0.00020513,2]
[394305501,1763437839848,-605.46,0.00020532,2]
[394305503,1763437839857,-2351.0,0.00020595,2]
[394305505,1763437839867,-200.0,0.00020635,2]
[394305507,1763437839876,-671.69,0.00020825,2]
[394305508,1763437839885,-166.66,0.00020898,2]
[394305510,1763437839894,-1000.0,0.00021282,2]
[394305512,1763437839903,-671.69,0.00021543,2]
[394305515,1763437839914,-166.66,0.00021588,2]
[394305517,1763437839923,-360.59,0.00021651,2]
[394305519,1763437839932,-156.35,0.00021857,2]
[394305521,1763437839942,-1000.0,0.00022051,2]
[394305522,1763437839951,-671.69,0.00022261,2]
[394305523,1763437839960,-823.0,0.0002227,2]
[394305524,1763437839969,-166.66,0.00022278,2]
[394305525,1763437839978,-515.06933902,0.00022522,2]
[394305526,1763437839987,-4817.98008619,0.00022534,2]
[394305528,1763437839997,-2141.0,0.00022603,2]
[394305531,1763437840006,-1220.26690108,0.00022613,2]
[394305532,1763437840015,-360.59,0.00022791,2]
[394305534,1763437840024,-1000.0,0.00022821,2]
[394305536,1763437840034,-166.66,0.00022968,2]
[394305538,1763437840043,-671.69,0.00022979,2]
[394305540,1763437840053,-1000.0,0.0002306,2]
[394305542,1763437840062,-4930.80140288,0.00023185,2]
[394305544,1763437840071,-324.37,0.00023368,2]
[394305546,1763437840080,-392.29,0.00023368,2]
[394305548,1763437840089,-2949.33,0.00023368,2]
[394305550,1763437840098,-555.91,0.00023368,2]
[394305552,1763437840108,-7320.49,0.00023368,2]
[394305554,1763437840117,-9999.99,0.00023368,2]
[394305556,1763437840126,-509.56,0.00023368,2]
[394305557,1763437840136,-150.99,0.00023368,2]
[394305558,1763437840145,-150.99,0.00023368,2]
[394305559,1763437840154,-1058.94,0.00023368,2]
[394305560,1763437840164,-1000.0,0.0002359,2]
[394305561,1763437840173,-166.66,0.00023658,2]
[394305562,1763437840182,-479.30025826,0.00023685,2]
[394305563,1763437840191,-671.69,0.00023697,2]
[394305564,1763437840201,-156.35,0.00023844,2]
[394305565,1763437840210,-360.59,0.0002393,2]
[394305566,1763437840219,-1017.0,0.00024321,2]
[394305567,1763437840229,-166.66,0.00024347,2]
[394305568,1763437840239,-671.69,0.00024415,2]
[394305569,1763437840248,-500.5808352,0.00024773,2]
[394305570,1763437840257,-500.96563335,0.00024773,2]
[394305571,1763437840266,-205.60198517,0.00024773,2]
[394305572,1763437840275,-305.85226526,0.00024773,2]
[394305573,1763437840285,-500.0,0.00024773,2]
[394305574,1763437840294,-424.32394158,0.00024773,2]
[394305575,1763437840304,-533.15594426,0.00024773,2]
[394305576,1763437840314,-500.0,0.00024773,2]
[394305577,1763437840325,-500.0,0.00024773,2]
[394305578,1763437840334,-500.0,0.00024773,2]
[394305579,1763437840343,-500.0,0.00024773,2]
[394305580,1763437840402,-265.01722424,0.0002479,2]
[394305581,1763437840411,-150.75,0.0002479,2]
[394305582,1763437840420,-186.44987428,0.00024799,2]
[394305583,1763437840429,-500.0,0.00024799,2]
[394305584,1763437840439,-500.0,0.00024799,2]
[394305585,1763437840449,-500.0,0.00024799,2]
[394305586,1763437840458,-500.0,0.00024799,2]
[394305587,1763437840467,-171.23533148,0.00024799,2]
[394305588,1763437840477,-500.0,0.00024799,2]
[394305589,1763437840487,-217.1766351,0.00024799,2]
[394305590,1763437840495,-500.0,0.00024799,2]
[394305591,1763437840505,-500.0,0.00024799,2]
[394305592,1763437840514,-500.0,0.00024799,2]
[394305593,1763437840523,-500.0,0.00024799,2]
[394305594,1763437840532,-500.0,0.00024799,2]
[394305595,1763437840542,-500.0,0.00024799,2]
[394305596,1763437840551,-315.5350721,0.00024799,2]
[394305597,1763437840560,-500.0,0.00024799,2]
[394305598,1763437840570,-294028.675431,0.000248,3]
[394305599,1763437840578,-501.48649795,0.00024873,2]
[394305600,1763437840588,-500.42544501,0.00024873,2]
[394305601,1763437840599,-110260.753286,0.0002489,3]
[394305602,1763437840609,-433.05,0.00024899,2]
[394305603,1763437840618,-360.59,0.0002507,2]
[394305604,1763437840628,-671.69,0.00025133,2]
[394305605,1763437840637,-433.05,0.00025173,2]
[394305606,1763437840648,-4817.98008619,0.00025253,2]
[394305607,1763437840657,-172.69125331,0.00025253,2]
[394305608,1763437840666,-1000.0,0.00025321,2]
[394305609,1763437840677,-502.35296359,0.00025321,2]
[394305610,1763437840686,-1220.26690108,0.00025321,2]
[394305611,1763437840695,-433.05,0.00025447,2]
[394305612,1763437840704,-1000.0,0.00025623,2]
[394305613,1763437840714,-433.05,0.00025721,2]
[394305614,1763437840723,-156.35,0.00025831,2]
[394305615,1763437840732,-671.69,0.00025851,2]
[394305616,1763437840742,-1500.0,0.00025868,2]
[394305617,1763437840751,-433.08,0.00025995,2]
[394305618,1763437840761,-360.59,0.00026209,2]
[394305619,1763437840770,-2000.0,0.00026416,2]
[394305620,1763437840779,-671.69,0.00026569,2]
[394305621,1763437840789,-1133.9705709,0.00026964,2]
[394305622,1763437840798,-671.69,0.00027287,2]
[394305623,1763437840807,-360.59,0.00027349,2]
[394305624,1763437840817,-458.98,0.00027397,2]
[394305625,1763437840826,-159.8,0.000274,7]
[394305626,1763437840835,-156.35,0.00027818,2]
[394305627,1763437840844,-515.06933902,0.00027871,2]
[394305628,1763437840853,-5000.0,0.0002789,2]
[394305629,1763437840862,-4817.98008619,0.00027971,2]
[394305630,1763437840873,-1220.26690108,0.00028028,2]
[394305631,1763437840882,-150.0,0.00028169,2]
[394305632,1763437840891,-1000.0,0.00028185,2]
[394305633,1763437840901,-360.59,0.00028488,2]
[394305634,1763437840910,-166.66,0.00028899,30]
[394305635,1763437840919,-166.66,0.00029508,30]
[394305636,1763437840929,-360.59,0.00029628,2]
[394305637,1763437840939,-5587.52,0.00029633,2]
[394305638,1763437840948,-156.35,0.00029804,2]
[394305639,1763437840958,-174.0,0.0003,14]
[394305640,1763437840966,-166.66,0.00030116,30]
[394305641,1763437840976,-500.0,0.0003014,5]
[394305642,1763437840986,-153.0,0.00030592,2]
[394305643,1763437840995,-153.0,0.00030592,2]
[394305644,1763437841004,-153.0,0.00030592,2]
[394305645,1763437841013,-153.0,0.00030592,2]
[394305646,1763437841022,-153.0,0.00030596,2]
[394305647,1763437841032,-153.0,0.00030596,2]
[394305648,1763437841041,-153.0,0.00030596,2]
[394305649,1763437841050,-153.0,0.00030596,2]
[394305650,1763437841059,-153.0,0.00030627,2]
[394305651,1763437841068,-153.0,0.00030627,2]
[394305652,1763437841077,-153.0,0.00030627,2]
[394305653,1763437841086,-153.0,0.00030627,2]
[394305654,1763437841095,-153.0,0.00030627,2]
[394305655,1763437841104,-153.0,0.00030627,2]
[394305656,1763437841113,-153.0,0.00030633,2]
[394305657,1763437841123,-153.0,0.00030633,2]
[394305658,1763437841133,-153.0,0.00030633,2]
[394305659,1763437841142,-153.0,0.00030633,2]
[394305660,1763437841151,-4817.98008619,0.0003069,2]
[394305661,1763437841160,-166.66,0.00030724,30]
[394305662,1763437841169,-1220.26690108,0.00030735,2]
[394305663,1763437841178,-1000.0,0.00030747,2]
[394305664,1763437841187,-360.59,0.00030767,2]
[394305665,1763437841196,-610.0,0.00030811,2]
[394305666,1763437841206,-166.66,0.00031333,30]
[394305667,1763437841215,-272.788652,0.00031412,2]
[394305668,1763437841224,-519.0,0.00031562,2]
[394305669,1763437841234,-294.43,0.00031921,2]
[394305670,1763437841242,-166.66,0.00031941,30]
[394305671,1763437841251,-159.8,0.00032,7]
[394305672,1763437841260,-3255.78,0.00032232,2]
[394305673,1763437841270,-2000.0,0.000329,2]
[394305674,1763437841279,-161.0,0.00033,20]
[394305675,1763437841288,-609.0,0.00033219,2]
[394305676,1763437841297,-1318.0,0.00033219,2]
[394305677,1763437841306,-575.0,0.00033219,2]
[394305678,1763437841315,-907.0,0.00033219,2]
[394305679,1763437841324,-1191.0,0.00033219,2]
[394305680,1763437841333,-1662.672,0.00033219,2]
[394305681,1763437841342,-821.0,0.00033219,2]
[394305682,1763437841351,-1276.0,0.00033219,2]
[394305683,1763437841360,-793.0,0.00033219,2]
[394305684,1763437841371,-705.0,0.00033219,2]
[394305685,1763437841380,-1604.0,0.00033219,2]
[394305686,1763437841390,-6490.0,0.00033219,2]
[394305687,1763437841399,-561.0,0.00033219,2]
[394305688,1763437841408,-4817.98008619,0.00033408,2]
[394305689,1763437841417,-172.69125331,0.00033409,15]
[394305690,1763437841426,-1220.26690108,0.00033442,2]
[394305691,1763437841435,-170.0,0.00034,30]
[394305692,1763437841444,-220.25422768,0.00034275,2]
[394305693,1763437841453,-220.25422768,0.00034668,2]
[394305694,1763437841462,-152.0,0.00034791,3]
[394305695,1763437841472,-220.25422768,0.00034874,2]
[394305696,1763437841482,-346.82372292,0.0003497,2]
[394305697,1763437841490,-163.12080413,0.0003498,7]
[394305698,1763437841503,-161.0,0.00035,31]
[394305699,1763437841512,-28400.9616858,0.00035051,2]
[394305700,1763437841521,-13426.0084771,0.00035051,2]
[394305701,1763437841531,-174018.436617,0.00035051,2]
[394305702,1763437841545,-1173.22049338,0.00035051,2]
[394305703,1763437841556,-865.683495,0.00035051,2]
[394305704,1763437841567,-4559.51605032,0.00035051,2]
[394305705,1763437841585,-1088.94000001,0.00035051,2]
[394305706,1763437841599,-1340.44151226,0.00035051,2]
[394305707,1763437841610,-1690.66002,0.00035051,2]
[394305708,1763437841621,-918.085566,0.00035051,2]
[394305709,1763437841637,-857.9625176,0.00035051,2]
[394305710,1763437841648,-2018.80999754,0.00035051,2]
[394305711,1763437841659,-1447.70925639,0.00035051,2]
[394305759,1763437842766,-4521.05,0.00035051,2]
[394305762,1763437842779,-101053.9903711,0.00035051,2]
[394305764,1763437842789,-151.0,0.00035051,31]
[394305766,1763437842798,-151.0,0.00035051,31]
[394305768,1763437842807,-151.0,0.00035051,31]
[394305770,1763437842817,-151.0,0.00035051,31]
[394305772,1763437842826,-152.795866,0.00035051,31]
[394305774,1763437842835,-153.815231,0.00035051,31]
[394305776,1763437842844,-151.0,0.00035051,31]
[394305778,1763437842854,-151.0,0.00035051,31]
[394305780,1763437842864,-153.679892,0.00035051,31]
[394305782,1763437842874,-151.0,0.00035051,31]
[394305784,1763437842883,-151.0,0.00035051,31]
[394305786,1763437842892,-150.0,0.00035069,2]
[394305788,1763437842901,-500.0,0.00035069,2]
[394305790,1763437842910,-455.0,0.00035069,2]
[394305792,1763437842919,-500.0,0.00035069,2]
[394305794,1763437842929,-30257.1961077,0.0003508,2]
[394305796,1763437842938,-220.51178805,0.0003508,2]
[394305798,1763437842947,-161.25120029,0.0003508,2]
[394305800,1763437842956,-499.8212,0.0003508,2]
[394305802,1763437842965,-499.8212,0.0003508,2]
[394305804,1763437842974,-499.8212,0.0003508,2]
[394305806,1763437842982,-499.82121,0.0003508,2]
[394305807,1763437842991,-499.8212,0.0003508,2]
[394305809,1763437843000,-499.82121,0.0003508,2]
[394305811,1763437843009,-288.42907413,0.00035206,2]
[394305813,1763437843018,-500.0,0.00035206,2]
[394305815,1763437843027,-455.0,0.00035206,2]
[394305817,1763437843036,-500.0,0.00035206,2]
[394305819,1763437843045,-500.0,0.00035343,2]
[394305821,1763437843055,-455.0,0.00035343,2]
[394305823,1763437843064,-500.0,0.00035343,2]
[394305825,1763437843073,-500.0,0.0003548,2]
[394305827,1763437843082,-455.0,0.0003548,2]
[394305830,1763437843091,-500.0,0.0003548,2]
[394305832,1763437843100,-407.55,0.00035616,2]
[394305834,1763437843110,-500.0,0.00035617,2]
[394305836,1763437843121,-455.0,0.00035617,2]
[394305838,1763437843130,-500.0,0.00035617,2]
[394305840,1763437843139,-159.8,0.000357,14]
[394305842,1763437843148,-500.0,0.00035754,2]
[394305844,1763437843158,-455.0,0.00035754,2]
[394305846,1763437843167,-500.0,0.00035754,2]
[394305848,1763437843176,-383.2492508,0.00035857,2]
[394305850,1763437843185,-419.26869471,0.00035857,2]
[394305852,1763437843194,-500.0,0.00035891,2]
[394305854,1763437843203,-455.0,0.00035891,2]
[394305857,1763437843212,-500.0,0.00035891,2]
[394305859,1763437843221,-500.0,0.00036028,2]
[394305861,1763437843230,-455.0,0.00036028,2]
[394305863,1763437843239,-500.0,0.00036028,2]
[394305865,1763437843248,-346.82372286,0.00036069,2]
[394305867,1763437843257,-4817.98008619,0.00036127,2]
[394305869,1763437843266,-1220.26690108,0.0003615,2]
[394305871,1763437843275,-500.0,0.00036165,2]
[394305873,1763437843285,-455.0,0.00036165,2]
[394305875,1763437843293,-500.0,0.00036165,2]
[394305877,1763437843302,-1389.0,0.00036178,7]
[394305879,1763437843311,-609.0,0.00036219,2]
[394305881,1763437843320,-832.806,0.00036219,2]
[394305883,1763437843330,-575.0,0.00036219,2]
[394305885,1763437843339,-1599.0,0.00036219,2]
[394305887,1763437843348,-821.0,0.00036219,2]
[394305888,1763437843356,-1276.0,0.00036219,2]
[394305890,1763437843366,-793.0,0.00036219,2]
[394305893,1763437843376,-705.0,0.00036219,2]
[394305895,1763437843386,-1604.0,0.00036219,2]
[394305897,1763437843395,-6490.0,0.00036219,2]
[394305899,1763437843404,-561.0,0.00036219,2]
[394305901,1763437843413,-1389.0,0.00036279,2]
[394305903,1763437843423,-864.3,0.0003629,5]
[394305905,1763437843432,-284.94007863,0.00036302,2]
[394305907,1763437843440,-455.0,0.00036302,2]
[394305909,1763437843450,-500.0,0.00036302,2]
[394305911,1763437843458,-455.0,0.00036439,2]
[394305913,1763437843467,-437.88620089,0.00036439,2]
[394305915,1763437843476,-151.0,0.0003649,31]
[394305917,1763437843486,-151.0,0.0003649,31]
[394305918,1763437843495,-151.0,0.0003649,31]
[394305919,1763437843503,-153.884434,0.0003649,31]
[394305920,1763437843514,-151.0,0.0003649,31]
[394305921,1763437843523,-151.0,0.0003649,31]
[394305922,1763437843532,-151.0,0.0003649,31]
[394305923,1763437843541,-151.0,0.0003649,31]
[394305924,1763437843551,-259.549243,0.0003649,31]
[394305926,1763437843560,-151.0,0.0003649,31]
[394305928,1763437843570,-174.631836,0.0003649,28]
[394305930,1763437843578,-174.631836,0.0003649,28]
[394305931,1763437843587,-174.631836,0.0003649,28]
[394305932,1763437843600,-174.631836,0.0003649,28]
[394305933,1763437843611,-151.0,0.0003649,31]
[394305934,1763437843620,-131967.62988024,0.000365,2]
[394305935,1763437843631,-151.0,0.000365,31]
[394305936,1763437843642,-153.51226,0.000365,31]
[394305937,1763437843651,-151.0,0.000365,31]
[394305938,1763437843660,-154.499736,0.000365,31]
[394305939,1763437843671,-151.0,0.000365,31]
[394305940,1763437843681,-151.0,0.000365,31]
[394305941,1763437843690,-151.0,0.000365,31]
[394305942,1763437843699,-154.235253,0.000365,31]
[394305943,1763437843708,-151.0,0.000365,31]
[394305944,1763437843718,-151.0,0.000365,31]
[394305945,1763437843727,-151.0,0.000365,31]
[394305946,1763437843736,-173.780005,0.000365,31]
[394305947,1763437843746,-152.45719,0.000365,31]
[394305948,1763437843755,-151.0,0.000365,31]
[394305949,1763437843765,-151.0,0.000365,31]
[394305950,1763437843775,-159.606515,0.000365,31]
[394305951,1763437843784,-180.741234,0.000365,15]
[394305952,1763437843793,-151.0,0.000365,31]
[394305953,1763437843802,-151.0,0.000365,31]
[394305954,1763437843811,-151.590482,0.000365,31]
[394305955,1763437843820,-151.0,0.000365,31]
[394305956,1763437843830,-455.0,0.00036576,2]
[394305957,1763437843839,-2000.0,0.000366,2]
[394305958,1763437843848,-878.04,0.00036659,5]
[394305959,1763437843857,-1389.0,0.00036666,7]
[394305960,1763437843866,-296.0,0.00036684,2]
[394305961,1763437843876,-455.0,0.00036713,2]
[394305962,1763437843885,-1390.0,0.0003672,7]
[394305963,1763437843894,-297.0,0.00036725,2]
[394305964,1763437843903,-1389.0,0.00036728,2]
[394305965,1763437843912,-1391.0,0.00036793,7]
[394305966,1763437843921,-1391.0,0.00036794,2]
[394305967,1763437843930,-1590.21674865,0.000368,2]
[394305968,1763437843939,-151.0,0.000368,31]
[394305969,1763437843948,-151.0,0.000368,31]
[394305970,1763437843957,-157.319793,0.000368,31]
[394305971,1763437843966,-165.823155,0.000368,31]
[394305972,1763437843974,-154.082696,0.000368,31]
[394305973,1763437843983,-296.0,0.00036825,120]
[394305974,1763437843992,-455.0,0.0003685,2]
[394305975,1763437844001,-1389.0,0.00036903,120]
[394305976,1763437844010,-455.0,0.00036987,2]
[394305977,1763437844019,-200000.0,0.00037,2]
[394305978,1763437844028,-163.54326757,0.00037,2]
[394305979,1763437844037,-151.0,0.00037,31]
[394305980,1763437844046,-151.0,0.00037,31]
[394305981,1763437844055,-151.0,0.00037,31]
[394305982,1763437844065,-152.273436,0.00037,31]
[394305983,1763437844078,-151.0,0.00037,31]
[394305984,1763437844087,-151.0,0.00037,31]
[394305985,1763437844097,-174.631836,0.00037,28]
[394305986,1763437844106,-174.631836,0.00037,28]
[394305987,1763437844115,-174.631836,0.00037,28]
[394305988,1763437844125,-174.631836,0.00037,28]
[394305989,1763437844134,-151.0,0.00037,31]
[394305990,1763437844145,-151.0,0.00037,31]
[394305991,1763437844154,-151.0,0.00037,31]
[394305992,1763437844165,-151.0,0.00037,31]
[394305993,1763437844175,-151.0,0.00037,31]
[394305994,1763437844184,-455.0,0.00037124,2]
[394305995,1763437844193,-346.82372286,0.00037169,2]
[394305996,1763437844203,-292.81665078,0.000372,120]
[394305997,1763437844212,-292.81665075,0.000372,120]
[394305998,1763437844221,-292.81665075,0.000372,120]
[394305999,1763437844231,-292.81665075,0.000372,120]
[394306000,1763437844240,-1011.0,0.000372,7]
[394306001,1763437844249,-297.0,0.00037217,2]
[394306002,1763437844259,-455.0,0.00037261,2]
[394306003,1763437844269,-1340.0,0.000373,3]
[394306004,1763437844282,-455.0,0.00037398,2]
[394306005,1763437844291,-150.0,0.00037479,7]
[394306006,1763437844300,-150.0,0.00037479,7]
[394306007,1763437844309,-150.0,0.00037479,7]
[394306008,1763437844319,-150.0,0.00037479,7]
[394306009,1763437844328,-150.0,0.00037479,7]
[394306010,1763437844337,-150.0,0.00037479,7]
[394306011,1763437844346,-150.0,0.00037479,7]
[394306012,1763437844355,-150.0,0.00037479,7]
[394306013,1763437844364,-150.0,0.00037479,7]
[394306014,1763437844374,-150.0,0.00037479,7]
[394306015,1763437844383,-1000.0,0.00037503,30]
[394306016,1763437844392,-1000.0,0.00037503,30]
[394306017,1763437844401,-1000.0,0.00037503,30]
[394306018,1763437844410,-1000.0,0.00037503,30]
[394306019,1763437844419,-1000.0,0.00037503,30]
[394306020,1763437844429,-1000.0,0.00037503,30]
[394306021,1763437844438,-1996.10016985,0.00037503,30]
[394306022,1763437844447,-455.0,0.00037535,2]
[394306023,1763437844456,-4824.0,0.00037619,5]
[394306024,1763437844466,-455.0,0.00037672,2]
[394306025,1763437844482,-451.53707179,0.00037745,30]
[394306026,1763437844492,-455.0,0.00037809,2]
[394306027,1763437844503,-152.0,0.00037823,4]
[394306028,1763437844514,-199.62763338,0.0003788,2]
[394306029,1763437844523,-1390.0,0.00037885,2]
[394306030,1763437844532,-1389.0,0.00037895,2]
[394306031,1763437844542,-455.0,0.00037946,2]
[394306032,1763437844551,-151.0,0.0003799,31]
[394306033,1763437844561,-200000.0,0.00038,2]
[394306034,1763437844570,-283.020499,0.00038,31]
[394306035,1763437844579,-151.0,0.00038,31]
[394306036,1763437844589,-151.0,0.00038,31]
[394306037,1763437844603,-255.492088,0.00038,31]
[394306038,1763437844613,-150.0,0.00038,7]
[394306039,1763437844623,-150.0,0.00038,7]
[394306040,1763437844634,-150.0,0.00038,7]
[394306041,1763437844644,-151.0,0.00038,31]
[394306042,1763437844653,-151.0,0.00038,31]
[394306043,1763437844663,-1389.0,0.00038072,2]
[394306044,1763437844678,-455.0,0.00038083,2]
[394306045,1763437844689,-5518.0,0.000381,5]
[394306046,1763437844698,-469.3903002,0.0003822,2]
[394306047,1763437844708,-150.75,0.00038243,2]
[394306048,1763437844718,-1389.0,0.00038253,2]
[394306049,1763437844728,-346.82372286,0.00038268,2]
[394306050,1763437844738,-163.12080412,0.00038269,11]
[394306051,1763437844747,-150.0,0.00038312,7]
[394306052,1763437844757,-150.0,0.00038312,7]
[394306053,1763437844767,-150.0,0.00038312,7]
[394306054,1763437844776,-1389.0,0.00038331,2]
[394306055,1763437844786,-308.0,0.0003835,2]
[394306056,1763437844795,-151.0,0.00038356,120]
[394306057,1763437844805,-151.0,0.00038356,120]
[394306058,1763437844814,-250.95398,0.00038356,120]
[394306059,1763437844825,-1389.0,0.00038357,7]
[394306060,1763437844835,-1389.0,0.00038475,2]
[394306061,1763437844845,-300.0,0.00038499,10]
[394306062,1763437844855,-200000.0,0.000385,2]
[394306063,1763437844865,-151.0,0.000385,120]
[394306064,1763437844878,-151.0,0.000385,120]
[394306065,1763437844887,-151.0,0.000385,120]
[394306066,1763437844897,-151.0,0.000385,120]
[394306067,1763437844907,-151.0,0.000385,120]
[394306068,1763437844916,-174.631836,0.000385,28]
[394306069,1763437844925,-174.631836,0.000385,28]
[394306070,1763437844935,-174.631836,0.000385,28]
[394306071,1763437844945,-174.631836,0.000385,28]
[394306072,1763437844955,-204.118719,0.000385,120]
[394306073,1763437844965,-151.0,0.000385,120]
[394306074,1763437844975,-151.0,0.000385,120]
[394306075,1763437844984,-151.0,0.000385,120]
[394306076,1763437844994,-150.0,0.00038521,7]
[394306077,1763437845004,-150.0,0.00038521,7]
[394306078,1763437845014,-150.0,0.00038521,7]
[394306079,1763437845023,-1390.0,0.00038552,2]
[394306080,1763437845033,-1389.0,0.00038597,2]
[394306081,1763437845043,-154.00881384,0.0003865,7]
[394306082,1763437845053,-4817.98008619,0.00038845,2]
[394306083,1763437845064,-300.0,0.00038855,10]
[394306084,1763437845075,-1220.26690108,0.00038857,2]
[394306085,1763437845084,-867.49980261,0.00039,2]
[394306086,1763437845245,-9477.46043834,0.00039,2]
[394306087,1763437845261,-57279.80005752,0.00039,2]
[394306089,1763437845805,-151.0,0.000365,2]
[394306090,1763437845816,-309.83910118,0.00039,2]
[394306091,1763437845859,-132065.40060035,0.00039,2]
[394306092,1763437845869,-151.0,0.00039,120]
[394306093,1763437845880,-151.0,0.00039,120]
[394306094,1763437845889,-298.814415,0.00039,120]
[394306095,1763437845899,-299.002942,0.00039,90]
[394306096,1763437845908,-294.43,0.0003901,2]
[394306097,1763437845918,-1389.0,0.00039026,2]
[394306098,1763437845928,-150.0,0.00039041,7]
[394306099,1763437845941,-150.0,0.00039041,7]
[394306100,1763437845952,-150.0,0.00039041,7]
[394306101,1763437845962,-150.0,0.00039145,7]
[394306102,1763437845971,-150.0,0.00039145,7]
[394306103,1763437845981,-150.0,0.00039145,7]
[394306104,1763437845991,-516.60086702,0.00039178,30]
[394306105,1763437846001,-1389.0,0.00039205,120]
[394306106,1763437846011,-609.0,0.00039219,2]
[394306107,1763437846022,-575.0,0.00039219,2]
[394306108,1763437846032,-1599.0,0.00039219,2]
[394306109,1763437846042,-821.0,0.00039219,2]
[394306110,1763437846052,-1273.0,0.00039219,2]
[394306111,1763437846062,-793.0,0.00039219,2]
[394306112,1763437846072,-705.0,0.00039219,2]
[394306113,1763437846082,-1604.0,0.00039219,2]
[394306114,1763437846091,-6490.0,0.00039219,2]
[394306115,1763437846101,-561.0,0.00039219,2]
[394306117,1763437846111,-1390.0,0.000393,2]
[394306118,1763437846121,-516.60086702,0.00039315,30]
[394306119,1763437846131,-748.89,0.00039366,30]
[394306120,1763437846141,-346.82372286,0.00039367,2]
[394306121,1763437846150,-1000.0,0.000394,7]
[394306122,1763437846161,-1205.0,0.00039452,120]
[394306123,1763437846172,-516.60086702,0.00039479,30]
[394306124,1763437846183,-200000.0,0.000395,2]
[394306125,1763437846193,-151.0,0.000395,120]
[394306126,1763437846204,-151.0,0.000395,120]
[394306127,1763437846215,-151.0,0.000395,120]
[394306128,1763437846225,-174.631836,0.000395,28]
[394306129,1763437846234,-174.631836,0.000395,28]
[394306131,1763437846244,-174.631836,0.000395,28]
[394306133,1763437846253,-174.631836,0.000395,28]
[394306135,1763437846263,-151.0,0.000395,120]
[394306137,1763437846273,-159.620363,0.000395,120]
[394306138,1763437846282,-151.0,0.000395,120]
[394306139,1763437846292,-150.0,0.00039562,7]
[394306141,1763437846302,-150.0,0.00039562,7]
[394306143,1763437846311,-150.0,0.00039562,7]
[394306146,1763437846321,-516.60086702,0.00039644,30]
[394306150,1763437846331,-772.0,0.00039654,2]
[394306152,1763437846341,-1390.0,0.00039684,120]
[394306154,1763437846351,-516.60086702,0.00039808,30]
[394306156,1763437846360,-516.60086702,0.00039945,30]
[394306158,1763437846370,-325.97619083,0.00039962,2]
[394306160,1763437846380,-150.0,0.00039978,7]
[394306162,1763437846389,-150.0,0.00039978,7]
[394306164,1763437846399,-150.0,0.00039978,7]
[394306166,1763437846408,-1000.0,0.0004,30]
[394306168,1763437846418,-204.45962616,0.0004,120]
[394306170,1763437846427,-385.39402551,0.0004,2]
[394306172,1763437846436,-215.99539356,0.0004,2]
[394306174,1763437846447,-310.79879036,0.0004,2]
[394306177,1763437846457,-100000.0,0.0004,30]
[394306179,1763437846467,-304.77838565,0.0004,120]
[394306181,1763437846477,-479.30025826,0.0004,30]
[394306183,1763437846486,-150.0,0.00040082,7]
[394306185,1763437846496,-150.0,0.00040082,7]